fUSD/lending_fUSD_20251211
["ID","MTS","AMOUNT","RATE_DAILY","PERIOD"]
[398216684,1765437901105,-1000.0,0.00041868,30]
[398216685,1765437901156,-1000.0,0.00041868,120]
[398216686,1765437901210,-1000.0,0.00041868,60]
[398216687,1765437901264,-1000.0,0.00041868,30]
[398216688,1765437901316,-1000.0,0.00041868,30]
[398216689,1765437901369,-1000.0,0.00041868,30]
[398216690,1765437901421,-1000.0,0.00041868,30]
[398216691,1765437901472,-1000.0,0.00041868,30]
[398216692,1765437901521,-1000.0,0.00041868,30]
[398216693,1765437901570,-1000.0,0.00041868,30]
[398216694,1765437901620,-1000.0,0.00041868,30]
[398216695,1765437901669,-1000.0,0.00041868,30]
[398216696,1765437901719,-1000.0,0.00041868,30]
[398216697,1765437901767,-1000.0,0.00041868,30]
[398216698,1765437901820,-1000.0,0.00041868,30]
[398216699,1765437901870,-1000.0,0.00041868,30]
[398216700,1765437901921,-482.93556799,0.00041868,30]
[398216701,1765437901973,-1000.0,0.00041868,30]
[398216702,1765437902024,-1000.0,0.00041868,30]
[398216703,1765437902073,-1000.0,0.00041868,30]
[398216704,1765437902126,-1000.0,0.00041868,60]
[398216705,1765437902175,-150.01,0.00041868,120]
[398216706,1765437902224,-1000.0,0.00041868,60]
[398216707,1765437902271,-1000.0,0.00041868,30]
[398216708,1765437902321,-1013.28077763,0.00041868,30]
[398216709,1765437902373,-150.01,0.00041868,120]
[398216710,1765437902425,-1072.45757,0.00041868,60]
[398216711,1765437902477,-3050.59768,0.00041868,60]
[398216712,1765437902528,-1072.45757,0.00041868,60]
[398216713,1765437902580,-3050.59768,0.00041868,60]
[398216714,1765437902632,-3050.59768,0.00041868,60]
[398216715,1765437902682,-1072.45757,0.00041868,60]
[398216716,1765437902732,-1072.45757,0.00041868,60]
[398216717,1765437902783,-3050.59768,0.00041868,60]
[398216718,1765437902833,-1072.45757,0.00041868,60]
[398216719,1765437902884,-3050.59768,0.00041868,60]
[398216720,1765437902933,-2000.0,0.00041868,120]
[398216721,1765437902983,-2000.0,0.00041868,30]
[398216722,1765437903034,-1128.0,0.00041868,120]
[398216723,1765437903094,-245.33950027,0.00041868,30]
[398216724,1765437903161,-538.57383157,0.00041868,30]
[398216725,1765437903222,-402.68838215,0.00041868,30]
[398216726,1765437903282,-1284.40501821,0.00041868,120]
[398216727,1765437903343,-174.72018837,0.00041868,91]
[398216728,1765437903409,-923.64353216,0.00041868,30]
[398216729,1765437903471,-1178.92792631,0.00041868,30]
[398216730,1765437903535,-711.51222701,0.00041868,120]
[398216731,1765437903595,-819.10794452,0.00041868,120]
[398216732,1765437903638,-1129.80367445,0.00041868,120]
[398216733,1765437903678,-779.25840502,0.00041868,30]
[398216734,1765437903720,-410.41007326,0.00041868,120]
[398216735,1765437903761,-279.03366234,0.00041868,120]
[398216736,1765437903803,-1550.32525608,0.00041868,120]
[398216737,1765437903846,-2197.04099366,0.00041868,30]
[398216738,1765437903889,-2622.2641195,0.00041868,30]
[398216739,1765437903932,-328.97864832,0.00041868,120]
[398216740,1765437903979,-2505.25273872,0.00041868,30]
[398216741,1765437904021,-597.38972621,0.00041868,120]
[398216742,1765437904063,-616.03292359,0.00041868,120]
[398216743,1765437904105,-478.6537232,0.00041868,30]
[398216744,1765437904148,-1933.2415331,0.00041868,120]
[398216745,1765437904190,-239.83429435,0.00041868,120]
[398216746,1765437904233,-223.51739793,0.00041868,120]
[398216747,1765437904277,-904.49848162,0.00041868,30]
[398216748,1765437904323,-326.37181786,0.00041868,30]
[398216749,1765437904368,-3091.48830633,0.00041868,120]
[398216750,1765437904414,-913.33836164,0.00041868,30]
[398216751,1765437904463,-247.17224344,0.00041868,120]
[398216752,1765437904509,-1485.89110602,0.00041868,30]
[398216753,1765437904556,-581.31574426,0.00041868,90]
[398216754,1765437904605,-1064.82285086,0.00041868,120]
[398216755,1765437904647,-425.74959042,0.00041868,30]
[398216756,1765437904689,-577.2374982,0.00041868,120]
[398216757,1765437904731,-983.79479628,0.00041868,30]
[398216758,1765437904771,-745.30005858,0.00041868,120]
[398216759,1765437904812,-1709.94306511,0.00041868,60]
[398216760,1765437904852,-459.35197141,0.00041868,120]
[398216761,1765437904892,-194.50334543,0.00041868,30]
[398216762,1765437904935,-220.17475413,0.00041868,30]
[398216763,1765437904978,-1016.6394923,0.00041868,30]
[398216764,1765437905026,-946.27227742,0.00041868,120]
[398216765,1765437905068,-1669.99584211,0.00041868,120]
[398216766,1765437905109,-990.61857414,0.00041868,120]
[398216767,1765437905152,-3350.01586576,0.00041868,120]
[398216768,1765437905194,-372.07186437,0.00041868,120]
[398216769,1765437905404,-2168.37972801,0.00041868,120]
[398216770,1765437905447,-371.43927174,0.00041868,30]
[398216771,1765437905489,-210.04849819,0.00041868,30]
[398216772,1765437905531,-2369.05872726,0.00041868,120]
[398216773,1765437905575,-220.73665039,0.00041868,120]
[398216774,1765437905617,-805.32985859,0.00041868,30]
[398216775,1765437905659,-419.5887592,0.00041868,120]
[398216776,1765437905700,-670.66740703,0.00041868,120]
[398216777,1765437905741,-554.53277636,0.00041868,120]
[398216778,1765437905782,-1070.13366948,0.00041868,30]
[398216779,1765437905823,-615.09381113,0.00041868,120]
[398216780,1765437905863,-982.60602375,0.00041868,120]
[398216781,1765437905906,-1163.55956727,0.00041868,120]
[398216782,1765437905953,-606.86656243,0.00041868,120]
[398216783,1765437905999,-1123.998426,0.00041868,120]
[398216784,1765437906044,-205.52815137,0.00041868,120]
[398216785,1765437906086,-1078.91352095,0.00041868,120]
[398216786,1765437906131,-1174.83560312,0.00041868,120]
[398216787,1765437906175,-2368.10313593,0.00041868,120]
[398216788,1765437906224,-168.6670495,0.00041868,120]
[398216789,1765437906280,-982.37531788,0.00041868,120]
[398216790,1765437906321,-997.0,0.00041868,30]
[398216791,1765437906361,-987.53261685,0.00041868,120]
[398216792,1765437906401,-576.24847048,0.00041868,120]
[398216793,1765437906441,-934.49065173,0.00041868,30]
[398216794,1765437906481,-1398.66597431,0.00041868,120]
[398216795,1765437906522,-1980.85959112,0.00041868,120]
[398216796,1765437906563,-1722.91999832,0.00041868,120]
[398216797,1765437906603,-831.14953797,0.00041868,60]
[398216798,1765437906643,-266.3123673,0.00041868,120]
[398216799,1765437906683,-215.73039185,0.00041868,30]
[398216800,1765437906722,-749.31513417,0.00041868,120]
[398216801,1765437906761,-1227.34873586,0.00041868,120]
[398216802,1765437906796,-1376.83719053,0.00041868,120]
[398216803,1765437906832,-2181.44120493,0.00041868,120]
[398216804,1765437906871,-262.11735752,0.00041868,120]
[398216805,1765437906911,-214.6730754,0.00041868,30]
[398216806,1765437906950,-1379.20180875,0.00041868,120]
[398216807,1765437906990,-2354.61323897,0.00041868,120]
[398216808,1765437907029,-282.55717699,0.00041868,30]
[398216809,1765437907068,-567.86467441,0.00041868,30]
[398216810,1765437907108,-1388.13008508,0.00041868,120]
[398216812,1765437907149,-1499.61555499,0.00041868,120]
[398216813,1765437907188,-215.62640266,0.00041868,31]
[398216814,1765437907228,-264.45724856,0.00041868,120]
[398216815,1765437907268,-1559.30738641,0.00041868,120]
[398216816,1765437907308,-246.69664813,0.00041868,120]
[398216817,1765437907348,-2319.55563569,0.00041868,120]
[398216818,1765437907390,-1391.23370123,0.00041868,120]
[398216819,1765437907430,-1747.21803313,0.00041868,120]
[398216820,1765437907470,-756.0,0.00041868,120]
[398216821,1765437907510,-524.97494412,0.00041868,30]
[398216822,1765437907548,-1182.01230991,0.00041868,120]
[398216823,1765437907592,-865.60606801,0.00041868,120]
[398216824,1765437907631,-199.15834723,0.00041868,120]
[398216825,1765437907670,-512.90934626,0.00041868,120]
[398216826,1765437907708,-1320.50228511,0.00041868,120]
[398216827,1765437907748,-231.5636555,0.00041868,120]
[398216828,1765437907788,-491.9677422,0.00041868,120]
[398216829,1765437907827,-699.88438166,0.00041868,120]
[398216830,1765437907866,-483.80112858,0.00041868,30]
[398216831,1765437907910,-1096.47397656,0.00041868,30]
[398216832,1765437907950,-1395.74184966,0.00041868,49]
[398216833,1765437907991,-2472.44937631,0.00041868,30]
[398216834,1765437908033,-901.5722678,0.00041868,30]
[398216835,1765437908075,-1719.15666564,0.00041868,120]
[398216836,1765437908117,-1667.98326491,0.00041868,120]
[398216837,1765437908159,-890.3989528,0.00041868,120]
[398216838,1765437908202,-2039.07960408,0.00041868,120]
[398216839,1765437908247,-196.04140522,0.00041868,120]
[398216840,1765437908292,-499.57839102,0.00041868,60]
[398216841,1765437908335,-976.80407659,0.00041868,30]
[398216842,1765437908378,-1242.75370444,0.00041868,30]
[398216843,1765437908422,-1297.81078855,0.00041868,120]
[398216844,1765437908463,-531.6747407,0.00041868,120]
[398216845,1765437908503,-500.0,0.00041868,120]
[398216846,1765437908544,-185.9539238,0.00041868,120]
[398216847,1765437908592,-3003.77861948,0.00041868,120]
[398216848,1765437908635,-494.87449247,0.00041868,120]
[398216849,1765437908676,-345.39010414,0.00041868,120]
[398216850,1765437908719,-150.0,0.00041868,30]
[398216851,1765437908763,-2127.68448531,0.00041868,120]
[398216852,1765437908804,-150.02,0.00041868,120]
[398216853,1765437908847,-2000.0,0.00041868,120]
[398216854,1765437908893,-525.0,0.00041868,120]
[398216855,1765437908938,-24579.54,0.00041868,45]
[398216856,1765437908980,-1800.0,0.00041868,120]
[398216857,1765437909021,-2200.0,0.00041868,120]
[398216858,1765437909063,-1387.0,0.00041868,120]
[398216859,1765437909107,-42163.2,0.00041868,90]
[398216860,1765437909154,-3306.91,0.00041868,30]
[398216861,1765437909200,-1022.99951261,0.00041868,30]
[398216862,1765437909244,-2000.0,0.00041868,120]
[398216863,1765437909288,-150.02,0.00041868,120]
[398216864,1765437909330,-2063.0,0.00041868,120]
[398216865,1765437909553,-150.02,0.00041868,120]
[398216866,1765437909594,-150.02,0.00041868,120]
[398216867,1765437909635,-150.02,0.00041868,120]
[398216868,1765437909675,-150.02,0.00041868,120]
[398216869,1765437909713,-400.0,0.00041868,30]
[398216870,1765437909752,-400.0,0.00041868,30]
[398216871,1765437909793,-400.0,0.00041868,30]
[398216872,1765437909832,-400.0,0.00041868,30]
[398216873,1765437909874,-400.0,0.00041868,30]
[398216874,1765437909914,-400.0,0.00041868,30]
[398216875,1765437909952,-400.0,0.00041868,30]
[398216876,1765437909990,-400.0,0.00041868,30]
[398216877,1765437910030,-400.0,0.00041868,30]
[398216878,1765437910068,-405.54694245,0.00041868,30]
[398216879,1765437910107,-5000.0,0.00041868,120]
[398216880,1765437910147,-150.02,0.00041868,120]
[398216881,1765437910187,-3162.7696218,0.00041868,120]
[398216882,1765437910228,-150.02,0.00041868,120]
[398216883,1765437910268,-10231.50904759,0.00041868,120]
[398216884,1765437910308,-150.02,0.00041868,120]
[398216885,1765437910348,-150.02,0.00041868,120]
[398216886,1765437910388,-150.02,0.00041868,120]
[398216887,1765437910430,-150.02,0.00041868,120]
[398216888,1765437910470,-150.02,0.00041868,120]
[398216889,1765437910508,-150.02,0.00041868,120]
[398216890,1765437910548,-3206.31,0.00041868,120]
[398216891,1765437910588,-150.02,0.00041868,120]
[398216892,1765437910626,-2200.119,0.00041868,120]
[398216893,1765437910664,-2700.0,0.00041868,90]
[398216894,1765437910702,-2704.38,0.00041868,95]
[398216895,1765437910740,-150.02,0.00041868,120]
[398216896,1765437910779,-289.0,0.00041868,120]
[398216897,1765437910817,-5193.03845239,0.00041868,80]
[398216898,1765437910854,-22217.19844918,0.00041868,60]
[398216899,1765437910893,-150.02,0.00041868,120]
[398216900,1765437910934,-10013.20535158,0.00041868,45]
[398216901,1765437910980,-5100.0,0.00041868,36]
[398216902,1765437911023,-852.6622887,0.00041868,30]
[398216903,1765437911067,-334.6155914,0.00041868,30]
[398216904,1765437911106,-500.0,0.00041868,30]
[398216905,1765437911146,-500.0,0.00041868,30]
[398216906,1765437911188,-8392.25152849,0.00041868,120]
[398216907,1765437911229,-79979.79871393,0.00041868,120]
[398216908,1765437911274,-174.00023022,0.00041868,30]
[398216909,1765437911316,-183.75119743,0.00041868,60]
[398216910,1765437911357,-953.98773479,0.00041868,120]
[398216911,1765437911399,-10002.94717408,0.00041868,120]
[398216912,1765437911441,-107414.80267711,0.00041868,30]
[398216913,1765437911481,-1573.484004,0.00041868,75]
[398216914,1765437911521,-929.2842809,0.00041868,35]
[398216915,1765437911569,-678.96524898,0.00041868,120]
[398216916,1765437911609,-160.6796622,0.00041868,120]
[398216917,1765437911649,-153.00412026,0.00041868,30]
[398216918,1765437911688,-465.87728411,0.00041868,30]
[398216919,1765437911727,-100564.514,0.00041868,30]
[398216920,1765437911766,-443.8535951,0.00041868,120]
[398216921,1765437911805,-1415.3116616,0.00041868,120]
[398216922,1765437911849,-1305.6416162,0.00041868,30]
[398216923,1765437911889,-3465.92054827,0.00041868,120]
[398216924,1765437911928,-450.59127475,0.00041868,30]
[398216925,1765437911969,-239.74271463,0.00041868,31]
[398216926,1765437912007,-736.47497986,0.00041868,120]
[398216927,1765437912047,-5356.50059425,0.00041868,60]
[398216928,1765437912091,-160890.0,0.00041868,60]
[398216929,1765437912134,-11152.01,0.00041868,45]
[398216930,1765437912175,-150.01,0.00041868,120]
[398216931,1765437912216,-150.01,0.00041868,120]
[398216932,1765437912258,-150.01,0.00041868,120]
[398216933,1765437912297,-150.01,0.00041868,120]
[398216934,1765437912338,-150.01,0.00041868,120]
[398216935,1765437912380,-150.01,0.00041868,120]
[398216936,1765437912420,-150.01,0.00041868,120]
[398216937,1765437912460,-150.01,0.00041868,120]
[398216938,1765437912500,-150.02,0.00041868,120]
[398216939,1765437912544,-150.02,0.00041868,120]
[398216940,1765437912585,-150.02,0.00041868,120]
[398216941,1765437912624,-150.02,0.00041868,120]
[398216942,1765437912663,-150.02,0.00041868,120]
[398216943,1765437912702,-150.02,0.00041868,120]
[398216944,1765437912740,-150.02,0.00041868,120]
[398216945,1765437912780,-150.02,0.00041868,120]
[398216946,1765437912820,-150.02,0.00041868,120]
[398216947,1765437912860,-150.02,0.00041868,120]
[398216948,1765437912898,-150.02,0.00041868,120]
[398216949,1765437912937,-206.78234108,0.00041868,120]
[398216950,1765437912976,-150.02,0.00041868,120]
[398216951,1765437913015,-150.02,0.00041868,120]
[398216952,1765437913054,-150.02,0.00041868,120]
[398216953,1765437913094,-150.02,0.00041868,120]
[398216954,1765437913134,-150.02,0.00041868,120]
[398216955,1765437913176,-150.02,0.00041868,120]
[398216956,1765437913218,-150.02,0.00041868,120]
[398216957,1765437913261,-150.02,0.00041868,120]
[398216958,1765437913300,-150.02,0.00041868,120]
[398216959,1765437913513,-150.02,0.00041868,120]
[398216960,1765437913554,-150.02,0.00041868,120]
[398216961,1765437913594,-150.02,0.00041868,120]
[398216962,1765437913634,-150.02,0.00041868,120]
[398216963,1765437913676,-150.02,0.00041868,120]
[398216964,1765437913716,-150.02,0.00041868,120]
[398216965,1765437913757,-150.02,0.00041868,120]
[398216966,1765437913798,-150.02,0.00041868,120]
[398216967,1765437913838,-150.02,0.00041868,120]
[398216968,1765437913877,-150.02,0.00041868,120]
[398216969,1765437913916,-150.02,0.00041868,120]
[398216970,1765437913956,-150.02,0.00041868,120]
[398216971,1765437913996,-150.02,0.00041868,120]
[398216972,1765437914036,-150.02,0.00041868,120]
[398216973,1765437914080,-249.02,0.00041868,120]
[398216974,1765437914121,-150.02,0.00041868,120]
[398216975,1765437914163,-150.02,0.00041868,120]
[398216976,1765437914204,-150.02,0.00041868,120]
[398216977,1765437914245,-150.02,0.00041868,120]
[398216978,1765437914287,-150.02,0.00041868,120]
[398216979,1765437914329,-150.02,0.00041868,120]
[398216980,1765437914372,-150.02,0.00041868,120]
[398216981,1765437914419,-150.02,0.00041868,120]
[398216982,1765437914461,-150.02,0.00041868,120]
[398216983,1765437914501,-150.02,0.00041868,120]
[398216984,1765437914540,-150.02,0.00041868,120]
[398216985,1765437914583,-150.02,0.00041868,120]
[398216986,1765437914624,-150.02,0.00041868,120]
[398216987,1765437914666,-150.02,0.00041868,120]
[398216988,1765437914707,-150.02,0.00041868,120]
[398216989,1765437914749,-150.02,0.00041868,120]
[398216990,1765437914796,-150.02,0.00041868,120]
[398216991,1765437914839,-150.02,0.00041868,120]
[398216992,1765437914882,-150.02,0.00041868,120]
[398216993,1765437914926,-150.02,0.00041868,120]
[398216994,1765437914970,-150.02,0.00041868,120]
[398216995,1765437915008,-150.02,0.00041868,120]
[398216996,1765437915051,-150.02,0.00041868,120]
[398216997,1765437915092,-150.02,0.00041868,120]
[398216998,1765437915133,-150.02,0.00041868,120]
[398216999,1765437915171,-150.02,0.00041868,120]
[398217000,1765437915211,-150.02,0.00041868,120]
[398217001,1765437915252,-150.02,0.00041868,120]
[398217002,1765437915299,-150.02,0.00041868,120]
[398217003,1765437915346,-150.02,0.00041868,120]
[398217004,1765437915393,-150.02,0.00041868,120]
[398217005,1765437915435,-150.02,0.00041868,120]
[398217006,1765437915476,-150.02,0.00041868,120]
[398217007,1765437915517,-150.02,0.00041868,120]
[398217008,1765437915561,-150.02,0.00041868,120]
[398217009,1765437915599,-150.02,0.00041868,120]
[398217010,1765437915640,-150.02,0.00041868,120]
[398217011,1765437915681,-150.02,0.00041868,120]
[398217012,1765437915720,-150.02,0.00041868,120]
[398217013,1765437915761,-150.02,0.00041868,120]
[398217014,1765437915804,-150.02,0.00041868,120]
[398217015,1765437915847,-150.02,0.00041868,120]
[398217016,1765437915888,-150.02,0.00041868,120]
[398217017,1765437915944,-150.02,0.00041868,120]
[398217018,1765437915985,-150.02,0.00041868,120]
[398217019,1765437916026,-150.02,0.00041868,120]
[398217020,1765437916072,-150.02,0.00041868,120]
[398217021,1765437916120,-150.02,0.00041868,120]
[398217022,1765437916162,-150.02,0.00041868,120]
[398217023,1765437916206,-150.02,0.00041868,120]
[398217024,1765437916249,-150.02,0.00041868,120]
[398217025,1765437916290,-150.02,0.00041868,120]
[398217026,1765437916334,-150.02,0.00041868,120]
[398217027,1765437916376,-150.02,0.00041868,120]
[398217028,1765437916417,-150.02,0.00041868,120]
[398217029,1765437916458,-150.02,0.00041868,120]
[398217030,1765437916500,-150.02,0.00041868,120]
[398217031,1765437916544,-150.02,0.00041868,120]
[398217032,1765437916589,-150.02,0.00041868,120]
[398217033,1765437916634,-150.02,0.00041868,120]
[398217034,1765437916675,-150.02,0.00041868,120]
[398217035,1765437916716,-150.02,0.00041868,120]
[398217036,1765437916756,-150.02,0.00041868,120]
[398217037,1765437916799,-150.02,0.00041868,120]
[398217038,1765437916840,-150.02,0.00041868,120]
[398217039,1765437916884,-150.02,0.00041868,120]
[398217040,1765437916926,-150.02,0.00041868,120]
[398217041,1765437916969,-155.02,0.00041868,120]
[398217042,1765437917010,-150.02,0.00041868,120]
[398217043,1765437917051,-150.02,0.00041868,120]
[398217044,1765437917093,-150.02,0.00041868,120]
[398217045,1765437917134,-150.02,0.00041868,120]
[398217046,1765437917176,-150.02,0.00041868,120]
[398217047,1765437917217,-150.02,0.00041868,120]
[398217048,1765437917258,-150.02,0.00041868,120]
[398217049,1765437917472,-150.02,0.00041868,120]
[398217050,1765437917513,-150.02,0.00041868,120]
[398217051,1765437917553,-150.02,0.00041868,120]
[398217052,1765437917593,-150.02,0.00041868,120]
[398217053,1765437917633,-150.02,0.00041868,120]
[398217054,1765437917673,-253.02,0.00041868,120]
[398217055,1765437917715,-333.13864631,0.00041868,120]
[398217056,1765437917756,-324.81269163,0.00041868,30]
[398217057,1765437917797,-2276.0,0.00041868,120]
[398217058,1765437917836,-1033.16331552,0.00041868,31]
[398217059,1765437917878,-285.43113106,0.00041868,120]
[398217060,1765437917919,-5100.0,0.00041868,35]
[398217061,1765437917962,-43099.05,0.00041868,90]
[398217062,1765437918004,-20445.88498178,0.00041868,90]
[398217063,1765437918045,-20000.0,0.00041868,90]
[398217064,1765437918087,-1001363.25186505,0.00041868,45]
[398217065,1765437918129,-22365.7253964,0.00041868,30]
[398217066,1765437918171,-9989.80095714,0.00041868,30]
[398217067,1765437918212,-29945.987999,0.00041868,30]
[398217068,1765437918253,-56153.5379853,0.00041868,30]
[398217069,1765437918295,-1854120.38329322,0.00041868,30]
[398217070,1765437920086,-152.51662616,0.00015978,2]
[398217071,1765437920111,-9.76820852,0.0001601,2]
[398217072,1765437921579,-185.23179148,0.0001601,2]
[398217073,1765437921644,-397.5755571,0.00016068,2]
[398217074,1765437921704,-300.0,0.00016075,2]
[398217075,1765437921765,-195.0,0.00016211,2]
[398217076,1765437921825,-227.0,0.000164,2]
[398217077,1765437921884,-318.0,0.000164,2]
[398217078,1765437921946,-182.0,0.000164,2]
[398217079,1765437922010,-184.41766167,0.000164,2]
[398217080,1765437922069,-300.0,0.00016437,2]
[398217081,1765437922129,-1200.0,0.00016437,2]
[398217083,1765437930125,-185.23179148,0.000154,2]
[398217084,1765437930137,-397.5755571,0.000154,2]
[398217085,1765437930152,-300.0,0.000154,2]
[398217086,1765437930183,-195.0,0.000154,2]
[398217087,1765437930195,-227.0,0.000154,2]
[398217088,1765437930206,-318.0,0.000154,2]
[398217089,1765437930222,-182.0,0.000154,2]
[398217090,1765437930254,-184.41766167,0.000154,2]
[398217091,1765437930266,-300.0,0.000154,2]
[398217092,1765437930277,-1200.0,0.000154,2]
[398217093,1765437930309,-3021.5599795,0.000154,2]
[398217094,1765437930337,-205.47999283,0.000154,2]
[398217095,1765437932113,-377.76294138,0.000154,2]
[398217096,1765437932809,-164.99440518,0.000154,2]
[398217097,1765437933036,-9079.48971206,0.000154,2]
[398217098,1765437933046,-542.75734656,0.00016,2]
[398217099,1765437933886,-246.49284026,0.00016,2]
[398217100,1765437936488,-311.49556018,0.00016,2]
[398217101,1765437941239,-320.38557446,0.00016,2]
[398217102,1765437943907,-158.81432441,0.00016,2]
[398217103,1765437947711,-284.55298379,0.00016,2]
[398217104,1765437951929,-293.72563283,0.00016,2]
[398217105,1765437953414,100000.1,0.000129,2]
[398217106,1765437954271,-165.50579755,0.00016,2]
[398217107,1765437958135,-206.72992886,0.00016,2]
[398217108,1765437959758,-440.70208798,0.00016,2]
[398217109,1765437961704,-500.0,0.00016,2]
[398217110,1765437963190,-177.77283939,0.00016,2]
[398217111,1765437964437,4266.66660633,0.00011,2]
[398217113,1765437965810,-206.64521273,0.00016,2]
[398217114,1765437969145,-217.6618747,0.00016,2]
[398217115,1765437975249,-383.16556999,0.00016,2]
[398217116,1765437978057,-198.67438707,0.00016,2]
[398217123,1765437981514,-294.40236244,0.00016,2]
[398217124,1765437985058,-171.07957278,0.00016,2]
[398217125,1765437989444,-309.51961887,0.00016,2]
[398217126,1765437992477,-298.42722782,0.00016,2]
[398217129,1765437998571,-288.53531446,0.00016,2]
[398217131,1765437999989,-300.0,0.00016,2]
[398217133,1765438002427,-261.29536241,0.00016,2]
[398217135,1765438004361,-379.91887995,0.00016,2]
[398217137,1765438006260,-183.56393933,0.00016,2]
[398217139,1765438008784,-500.0,0.00016,2]
[398217142,1765438012624,-191.5009891,0.00016,2]
[398217144,1765438014699,-287.64933852,0.00016,2]
[398217146,1765438016683,-286.85221084,0.00016,2]
[398217147,1765438018750,-383.14394847,0.00016,2]
[398217148,1765438020581,-470.69694866,0.00016,2]
[398217149,1765438023009,250.0,0.00015,2]
[398217150,1765438024253,250.0,0.00015,2]
[398217151,1765438025306,-213.58822172,0.00016,2]
[398217152,1765438030404,-3680.56355189,0.00016,2]
[398217153,1765438030419,-2638.88289622,0.00016,2]
[398217154,1765438030428,-300.0,0.00016051,2]
[398217155,1765438030438,-250.0,0.00016051,2]
[398217156,1765438030447,-195.0,0.00016051,2]
[398217157,1765438030456,-300.0,0.000161,2]
[398217158,1765438030466,-2635.56355189,0.00016101,2]
[398217159,1765438030676,-768.00644811,0.00016101,2]
[398217160,1765438030733,-300.0,0.00016195,2]
[398217161,1765438030792,-300.0,0.00016195,2]
[398217162,1765438030845,-398.99489655,0.00016195,2]
[398217163,1765438030897,-195.0,0.00016195,2]
[398217164,1765438030952,-550.0,0.00016199,2]
[398217165,1765438030971,-768.00644811,0.000162,5]
[398217166,1765438030981,-300.0,0.000162,5]
[398217167,1765438030994,-300.0,0.000162,5]
[398217168,1765438031024,-398.99489655,0.000162,5]
[398217169,1765438031084,-195.0,0.000162,5]
[398217170,1765438031134,-550.0,0.000162,5]
[398217171,1765438031165,-4976.00731068,0.000162,5]
[398217172,1765438031176,-10000.01,0.000162,5]
[398217173,1765438033482,-10000.01,0.000162,5]
[398217175,1765438064157,1001.52060375,0.00013,2]
[398217180,1765438097551,2111.63070996,0.00015,2]
[398217184,1765438103051,-300.0,0.00016199,2]
[398217185,1765438103083,-15.61367909,0.000162,2]
[398217190,1765438105656,-234.38632091,0.000162,2]
[398217191,1765438105683,-114.96810463,0.000162,5]
[398217192,1765438107096,-273.86768427,0.000162,5]
[398217198,1765438111540,-383.27176191,0.000162,5]
[398217207,1765438119948,-330.89964974,0.000162,5]
[398217208,1765438122736,-263.31375239,0.000162,5]
[398217209,1765438126411,-501.77934027,0.000162,5]
[398217210,1765438129535,-162.71423238,0.000162,5]
[398217211,1765438131680,-213.07228335,0.000162,5]
[398217212,1765438135249,-366.40181393,0.000162,5]
[398217213,1765438136675,-178.44131708,0.000162,5]
[398217214,1765438138315,-220.51439262,0.000162,5]
[398217215,1765438140379,-221.33988607,0.000162,5]
[398217216,1765438143081,-300.5706229,0.000162,5]
[398217219,1765438149322,-213.92952528,0.000162,5]
[398217220,1765438151268,-250.5060317,0.000162,5]
[398217221,1765438154340,-262.05562248,0.000162,5]
[398217222,1765438156925,-298.0,0.000162,5]
[398217225,1765438161808,-304.22914884,0.000162,5]
[398217230,1765438166200,-164.86836713,0.000162,5]
[398217235,1765438174089,-169.26868773,0.000162,5]
[398217238,1765438176530,-171.44471803,0.000162,5]
[398217241,1765438179306,-157.39716061,0.000162,5]
[398217244,1765438180986,-164.83,0.000162,5]
[398217245,1765438183517,-158.35170685,0.000162,5]
[398217246,1765438188730,-244.71974984,0.000162,5]